fUSD/lending_fUSD_20250123
["ID","MTS","AMOUNT","RATE_DAILY","PERIOD"]
[350124472,1737643852142,-500.0,0.00016986,2]
[350124473,1737643852151,-500.0,0.00016986,2]
[350124474,1737643852161,-500.0,0.00016986,2]
[350124475,1737643852170,-500.0,0.00016986,2]
[350124476,1737643852179,-500.0,0.00016986,2]
[350124477,1737643852189,-500.0,0.00016986,2]
[350124478,1737643852199,-593.98,0.00016986,2]
[350124479,1737643852208,-500.0,0.00016986,2]
[350124480,1737643852218,-513.99166815,0.00016986,2]
[350124481,1737643852227,-500.0,0.00016986,2]
[350124482,1737643852237,-500.0,0.00016986,2]
[350124483,1737643852247,-500.0,0.00016986,2]
[350124484,1737643852256,-500.0,0.00016986,2]
[350124485,1737643852265,-874.46,0.00016986,2]
[350124486,1737643852275,-500.0,0.00016986,2]
[350124487,1737643852284,-511.2834524,0.00016986,2]
[350124488,1737643852293,-500.0,0.00016986,2]
[350124489,1737643852303,-500.0,0.00016986,2]
[350124490,1737643852312,-500.0,0.00016986,2]
[350124491,1737643852421,-500.0,0.00016986,2]
[350124492,1737643852430,-500.0,0.00016986,2]
[350124493,1737643852440,-500.0,0.00016986,2]
[350124494,1737643852450,-500.0,0.00016986,2]
[350124495,1737643852459,-500.0,0.00016986,2]
[350124496,1737643852469,-500.0,0.00016986,2]
[350124497,1737643852479,-500.0,0.00016986,2]
[350124498,1737643852488,-614.42,0.00016986,2]
[350124499,1737643852497,-500.0,0.00016986,2]
[350124500,1737643852506,-954.43,0.00016986,2]
[350124501,1737643852515,-500.0,0.00016986,2]
[350124502,1737643852525,-500.0,0.00016986,2]
[350124503,1737643852535,-500.0,0.00016986,2]
[350124504,1737643852544,-500.0,0.00016986,2]
[350124505,1737643852553,-500.0,0.00016986,2]
[350124506,1737643852563,-500.0,0.00016986,2]
[350124507,1737643852572,-500.0,0.00016986,2]
[350124508,1737643852581,-500.0,0.00016986,2]
[350124509,1737643852590,-500.0,0.00016986,2]
[350124510,1737643852599,-500.0,0.00016986,2]
[350124511,1737643852611,-500.0,0.00016986,2]
[350124512,1737643852620,-500.0,0.00016986,2]
[350124513,1737643852629,-500.0,0.00016986,2]
[350124514,1737643852638,-500.0,0.00016986,2]
[350124515,1737643852647,-500.0,0.00016986,2]
[350124516,1737643852656,-500.0,0.00016986,2]
[350124517,1737643852665,-500.0,0.00016986,2]
[350124518,1737643852674,-500.0,0.00016986,2]
[350124519,1737643852683,-500.0,0.00016986,2]
[350124520,1737643852692,-500.0,0.00016986,2]
[350124521,1737643852701,-526.32024082,0.00016986,2]
[350124522,1737643852710,-500.0,0.00016986,2]
[350124523,1737643852719,-500.0,0.00016986,2]
[350124524,1737643852729,-500.0,0.00016986,2]
[350124525,1737643852738,-500.0,0.00016986,2]
[350124526,1737643852748,-500.0,0.00016986,2]
[350124527,1737643852758,-618.23,0.00016986,2]
[350124528,1737643852771,-500.0,0.00016986,2]
[350124529,1737643852780,-500.0,0.00016986,2]
[350124530,1737643852790,-500.0,0.00016986,2]
[350124531,1737643852799,-500.0,0.00016986,2]
[350124532,1737643852808,-500.0,0.00016986,2]
[350124533,1737643852818,-500.0,0.00016986,2]
[350124534,1737643852826,-700.1,0.00016986,2]
[350124535,1737643852836,-500.0,0.00016986,2]
[350124536,1737643852846,-500.0,0.00016986,2]
[350124537,1737643852857,-646.29,0.00016986,2]
[350124538,1737643852866,-500.0,0.00016986,2]
[350124539,1737643852875,-500.0,0.00016986,2]
[350124540,1737643852884,-500.0,0.00016986,2]
[350124541,1737643852893,-640.57,0.00016986,2]
[350124542,1737643852903,-500.0,0.00016986,2]
[350124543,1737643852912,-649.82,0.00016986,2]
[350124544,1737643852921,-500.0,0.00016986,2]
[350124545,1737643852930,-500.0,0.00016986,2]
[350124546,1737643852940,-500.0,0.00016986,2]
[350124547,1737643852949,-500.0,0.00016986,2]
[350124548,1737643852957,-500.0,0.00016986,2]
[350124549,1737643852966,-500.0,0.00016986,2]
[350124550,1737643852976,-243.65772549,0.00016986,2]
[350124551,1737643852985,-500.0,0.00016986,2]
[350124552,1737643852995,-500.0,0.00016986,2]
[350124553,1737643853004,-500.0,0.00016986,2]
[350124554,1737643853012,-692.91,0.00016986,2]
[350124555,1737643853022,-500.0,0.00016986,2]
[350124556,1737643853031,-500.0,0.00016986,2]
[350124557,1737643853040,-500.0,0.00016986,2]
[350124558,1737643853049,-500.0,0.00016986,2]
[350124559,1737643853058,-500.0,0.00016986,2]
[350124560,1737643853067,-500.0,0.00016986,2]
[350124561,1737643853077,-500.0,0.00016986,2]
[350124562,1737643853086,-672.48,0.00016986,2]
[350124563,1737643853095,-500.0,0.00016986,2]
[350124564,1737643853106,-500.0,0.00016986,2]
[350124565,1737643853115,-500.0,0.00016986,2]
[350124566,1737643853125,-722.67,0.00016986,2]
[350124567,1737643853134,-300.0,0.00016986,2]
[350124568,1737643853144,-500.0,0.00016986,2]
[350124569,1737643853153,-500.0,0.00016986,2]
[350124570,1737643853163,-500.0,0.00016986,2]
[350124571,1737643853172,-500.0,0.00016986,2]
[350124572,1737643853182,-648.82,0.00016986,2]
[350124573,1737643853192,-500.0,0.00016986,2]
[350124574,1737643853202,-500.0,0.00016986,2]
[350124575,1737643853213,-500.0,0.00016986,2]
[350124576,1737643853223,-500.0,0.00016986,2]
[350124577,1737643853232,-500.0,0.00016986,2]
[350124578,1737643853241,-744.32,0.00016986,2]
[350124579,1737643853251,-500.0,0.00016986,2]
[350124580,1737643853260,-596.94,0.00016986,2]
[350124581,1737643853270,-500.0,0.00016986,2]
[350124582,1737643853279,-579.24,0.00016986,2]
[350124583,1737643853289,-500.0,0.00016986,2]
[350124584,1737643853299,-500.0,0.00016986,2]
[350124585,1737643853308,-500.0,0.00016986,2]
[350124586,1737643853318,-500.0,0.00016986,2]
[350124587,1737643853327,-641.61,0.00016986,2]
[350124588,1737643853337,-509.73232581,0.00016986,2]
[350124589,1737643853346,-548.65482246,0.00016986,2]
[350124590,1737643853357,-500.0,0.00016986,2]
[350124591,1737643853366,-500.0,0.00016986,2]
[350124592,1737643853375,-500.0,0.00016986,2]
[350124593,1737643853385,-500.0,0.00016986,2]
[350124594,1737643853394,-500.0,0.00016986,2]
[350124595,1737643853404,-500.0,0.00016986,2]
[350124596,1737643853413,-500.0,0.00016986,2]
[350124597,1737643853423,-679.49,0.00016986,2]
[350124598,1737643853432,-500.0,0.00016986,2]
[350124599,1737643853442,-500.0,0.00016986,2]
[350124600,1737643853451,-622.88,0.00016986,2]
[350124601,1737643853460,-500.0,0.00016986,2]
[350124602,1737643853470,-314.26772388,0.00016986,2]
[350124603,1737643853479,-500.0,0.00016986,2]
[350124604,1737643853488,-309.91716349,0.00016986,2]
[350124605,1737643853497,-500.0,0.00016986,2]
[350124606,1737643853506,-500.0,0.00016986,2]
[350124607,1737643853516,-500.0,0.00016986,2]
[350124608,1737643853525,-799.54,0.00016986,2]
[350124609,1737643853535,-500.0,0.00016986,2]
[350124610,1737643853544,-500.0,0.00016986,2]
[350124611,1737643853553,-500.0,0.00016986,2]
[350124612,1737643853563,-821.11,0.00016986,2]
[350124613,1737643853572,-569.5,0.00016986,2]
[350124614,1737643853581,-500.0,0.00016986,2]
[350124615,1737643853590,-698.74,0.00016986,2]
[350124616,1737643853600,-500.0,0.00016986,2]
[350124617,1737643853611,-500.0,0.00016986,2]
[350124618,1737643853620,-768.48,0.00016986,2]
[350124619,1737643853629,-500.0,0.00016986,2]
[350124620,1737643853638,-500.0,0.00016986,2]
[350124621,1737643853647,-500.0,0.00016986,2]
[350124622,1737643853657,-1206.65,0.00016986,2]
[350124623,1737643853666,-500.0,0.00016986,2]
[350124624,1737643853675,-438.72967266,0.00016986,2]
[350124625,1737643853684,-500.0,0.00016986,2]
[350124626,1737643853694,-2347.43,0.00016986,2]
[350124627,1737643853703,-901.23,0.00016986,2]
[350124628,1737643853713,-500.0,0.00016986,2]
[350124629,1737643853722,-500.0,0.00016986,2]
[350124630,1737643853732,-500.0,0.00016986,2]
[350124631,1737643853741,-500.0,0.00016986,2]
[350124632,1737643853755,-830.91,0.00016986,2]
[350124633,1737643853765,-361.08921103,0.00016986,2]
[350124634,1737643853774,-500.0,0.00016986,2]
[350124635,1737643853783,-500.0,0.00016986,2]
[350124636,1737643853793,-766.14,0.00016986,2]
[350124637,1737643853802,-1316.3,0.00016986,2]
[350124638,1737643853811,-500.0,0.00016986,2]
[350124639,1737643853820,-500.0,0.00016986,2]
[350124640,1737643853830,-1012.01,0.00016986,2]
[350124641,1737643853839,-500.0,0.00016986,2]
[350124642,1737643853849,-500.0,0.00016986,2]
[350124643,1737643853862,-500.0,0.00016986,2]
[350124644,1737643853871,-963.15,0.00016986,2]
[350124645,1737643853881,-2938.45,0.00016986,2]
[350124646,1737643853890,-500.0,0.00016986,2]
[350124647,1737643853899,-500.0,0.00016986,2]
[350124648,1737643853909,-500.0,0.00016986,2]
[350124649,1737643854014,-500.0,0.00016986,2]
[350124650,1737643854024,-500.0,0.00016986,2]
[350124651,1737643854034,-1127.34,0.00016986,2]
[350124652,1737643854043,-948.15,0.00016986,2]
[350124653,1737643854053,-4558.7,0.00016986,2]
[350124654,1737643854062,-500.0,0.00016986,2]
[350124655,1737643854071,-500.0,0.00016986,2]
[350124656,1737643854080,-1223.71,0.00016986,2]
[350124657,1737643854090,-500.0,0.00016986,2]
[350124658,1737643854099,-3935.14,0.00016986,2]
[350124659,1737643854111,-500.0,0.00016986,2]
[350124660,1737643854121,-500.0,0.00016986,2]
[350124661,1737643854130,-812.59,0.00016986,2]
[350124662,1737643854140,-500.0,0.00016986,2]
[350124663,1737643854149,-500.0,0.00016986,2]
[350124664,1737643854159,-2339.7,0.00016986,2]
[350124665,1737643854168,-1653.76,0.00016986,2]
[350124666,1737643854177,-960.64,0.00016986,2]
[350124667,1737643854187,-838.97,0.00016986,2]
[350124668,1737643854196,-500.0,0.00016986,2]
[350124669,1737643854206,-2151.62,0.00016986,2]
[350124670,1737643854216,-1009.87,0.00016986,2]
[350124671,1737643854225,-695.81,0.00016986,2]
[350124672,1737643854235,-500.0,0.00016986,2]
[350124673,1737643854244,-500.0,0.00016986,2]
[350124674,1737643854254,-1277.74,0.00016986,2]
[350124675,1737643854264,-500.0,0.00016986,2]
[350124676,1737643854273,-1117.02,0.00016986,2]
[350124677,1737643854283,-540.58622942,0.00016986,2]
[350124678,1737643854292,-500.0,0.00016986,2]
[350124679,1737643854302,-500.0,0.00016986,2]
[350124680,1737643854311,-684.15,0.00016986,2]
[350124681,1737643854321,-886.93,0.00016986,2]
[350124682,1737643854330,-858.47,0.00016986,2]
[350124683,1737643854340,-500.0,0.00016986,2]
[350124684,1737643854349,-500.0,0.00016986,2]
[350124685,1737643854362,-952.26,0.00016986,2]
[350124686,1737643854371,-500.0,0.00016986,2]
[350124687,1737643854381,-577.78,0.00016986,2]
[350124688,1737643854390,-608.72,0.00016986,2]
[350124689,1737643854399,-2083.49,0.00016986,2]
[350124690,1737643854409,-500.0,0.00016986,2]
[350124691,1737643854418,-500.0,0.00016986,2]
[350124692,1737643854427,-3487.11,0.00016986,2]
[350124693,1737643854436,-2271.23,0.00016986,2]
[350124694,1737643854447,-2108.97,0.00016986,2]
[350124695,1737643854457,-500.0,0.00016986,2]
[350124696,1737643854466,-500.0,0.00016986,2]
[350124697,1737643854476,-2313.46,0.00016986,2]
[350124698,1737643854485,-500.0,0.00016986,2]
[350124699,1737643854495,-500.0,0.00016986,2]
[350124700,1737643854504,-1779.58,0.00016986,2]
[350124701,1737643854513,-500.0,0.00016986,2]
[350124702,1737643854523,-1204.66,0.00016986,2]
[350124703,1737643854532,-936.89,0.00016986,2]
[350124704,1737643854541,-500.0,0.00016986,2]
[350124705,1737643854551,-699.83,0.00016986,2]
[350124706,1737643854560,-500.0,0.00016986,2]
[350124707,1737643854569,-500.0,0.00016986,2]
[350124708,1737643854579,-980.86,0.00016986,2]
[350124709,1737643854588,-1983.91,0.00016986,2]
[350124710,1737643854597,-1040.51,0.00016986,2]
[350124711,1737643854610,-500.0,0.00016986,2]
[350124712,1737643854620,-2085.65,0.00016986,2]
[350124713,1737643854629,-944.5,0.00016986,2]
[350124714,1737643854639,-424.59,0.00016986,2]
[350124715,1737643854648,-1252.36,0.00016986,2]
[350124716,1737643854659,-500.0,0.00016986,2]
[350124717,1737643854668,-825.5,0.00016986,2]
[350124718,1737643854678,-500.0,0.00016986,2]
[350124719,1737643854687,-500.0,0.00016986,2]
[350124720,1737643854696,-500.0,0.00016986,2]
[350124721,1737643854706,-500.0,0.00016986,2]
[350124722,1737643854721,-527.59,0.00016986,2]
[350124723,1737643854740,-1618.86,0.00016986,2]
[350124724,1737643854758,-500.0,0.00016986,2]
[350124725,1737643854779,-500.0,0.00016986,2]
[350124726,1737643854796,-500.0,0.00016986,2]
[350124727,1737643854812,-694.26,0.00016986,2]
[350124728,1737643854830,-645.22,0.00016986,2]
[350124729,1737643854850,-2343.74,0.00016986,2]
[350124730,1737643854873,-500.0,0.00016986,2]
[350124731,1737643854891,-500.0,0.00016986,2]
[350124732,1737643854910,-500.0,0.00016986,2]
[350124733,1737643854929,-1723.16,0.00016986,2]
[350124734,1737643854942,-1297.71,0.00016986,2]
[350124735,1737643854961,-920.63,0.00016986,2]
[350124736,1737643854973,-1214.54,0.00016986,2]
[350124737,1737643854991,-500.0,0.00016986,2]
[350124738,1737643855003,-500.0,0.00016986,2]
[350124739,1737643855017,-500.0,0.00016986,2]
[350124740,1737643855031,-1000.0,0.00016986,2]
[350124741,1737643855047,-2037.22,0.00016986,2]
[350124742,1737643855061,-1209.91,0.00016986,2]
[350124743,1737643855076,-2330.42,0.00016986,2]
[350124745,1737643855091,-500.0,0.00016986,2]
[350124746,1737643855107,-1132.49,0.00016986,2]
[350124747,1737643855122,-934.4,0.00016986,2]
[350124748,1737643855136,-729.36,0.00016986,2]
[350124749,1737643855153,-500.0,0.00016986,2]
[350124750,1737643855167,-1227.33,0.00016986,2]
[350124751,1737643855182,-541.17,0.00016986,2]
[350124752,1737643855196,-500.0,0.00016986,2]
[350124753,1737643855211,-500.0,0.00016986,2]
[350124754,1737643855226,-389.47109504,0.00016986,2]
[350124755,1737643855240,-2386.51,0.00016986,2]
[350124756,1737643855255,-500.0,0.00016986,2]
[350124757,1737643855269,-500.0,0.00016986,2]
[350124758,1737643855284,-500.0,0.00016986,2]
[350124759,1737643855298,-982.9,0.00016986,2]
[350124760,1737643855313,-320.4392732,0.00016986,2]
[350124761,1737643855878,-1104.3307268,0.00016986,2]
[350124762,1737643855887,-500.0,0.00016986,2]
[350124763,1737643855896,-511.85813891,0.00016986,2]
[350124764,1737643855919,-500.0,0.00016438,2]
[350124765,1737643855929,-373.79186109,0.00016986,2]
[350124766,1737643855940,-500.0,0.00016986,2]
[350124767,1737643855950,-635.61,0.00016986,2]
[350124768,1737643855959,-500.0,0.00016986,2]
[350124769,1737643855968,-500.0,0.00016986,2]
[350124770,1737643855977,-500.0,0.00016986,2]
[350124771,1737643855987,-776.47,0.00016986,2]
[350124772,1737643855997,-1713.0,0.00016986,2]
[350124773,1737643856007,-1720.11,0.00016986,2]
[350124774,1737643856017,-936.39,0.00016986,2]
[350124775,1737643856027,-500.0,0.00016986,2]
[350124776,1737643856036,-510.73025092,0.00016986,2]
[350124777,1737643856046,-500.0,0.00016986,2]
[350124778,1737643856056,-754.05,0.00016986,2]
[350124779,1737643856065,-631.08,0.00016986,2]
[350124780,1737643856074,-949.85,0.00016986,2]
[350124781,1737643856083,-500.0,0.00016986,2]
[350124782,1737643856093,-1353.35,0.00016986,2]
[350124783,1737643856102,-500.0,0.00016986,2]
[350124784,1737643856114,-910.03,0.00016986,2]
[350124785,1737643856124,-500.0,0.00016986,2]
[350124786,1737643856134,-901.29,0.00016986,2]
[350124787,1737643856143,-500.0,0.00016986,2]
[350124788,1737643856153,-500.0,0.00016986,2]
[350124789,1737643856163,-500.0,0.00016986,2]
[350124790,1737643856172,-907.47,0.00016986,2]
[350124791,1737643856182,-551.01,0.00016986,2]
[350124792,1737643856191,-500.0,0.00016986,2]
[350124793,1737643856202,-642.67,0.00016986,2]
[350124794,1737643856214,-500.0,0.00016986,2]
[350124795,1737643856225,-1224.77,0.00016986,2]
[350124796,1737643856234,-500.0,0.00016986,2]
[350124797,1737643856245,-1968.67,0.00016986,2]
[350124798,1737643856255,-1274.42,0.00016986,2]
[350124799,1737643856265,-500.0,0.00016986,2]
[350124800,1737643856275,-2187.83,0.00016986,2]
[350124801,1737643856285,-500.0,0.00016986,2]
[350124802,1737643856294,-500.0,0.00016986,2]
[350124803,1737643856303,-500.0,0.00016986,2]
[350124804,1737643856313,-500.0,0.00016986,2]
[350124805,1737643856323,-500.0,0.00016986,2]
[350124806,1737643856333,-1035.7,0.00016986,2]
[350124807,1737643856342,-1126.99,0.00016986,2]
[350124808,1737643856351,-500.0,0.00016986,2]
[350124809,1737643856364,-1503.48,0.00016986,2]
[350124810,1737643856374,-500.0,0.00016986,2]
[350124811,1737643856384,-231.12,0.00016986,2]
[350124812,1737643856394,-500.0,0.00016986,2]
[350124813,1737643856403,-921.20813432,0.00016993,2]
[350124814,1737643856412,-816.96464306,0.00017,2]
[350124815,1737643856422,-1251.16970672,0.00017,2]
[350124816,1737643856431,-600.0,0.00017,2]
[350124817,1737643856440,-328.79282552,0.00017008,2]
[350124818,1737643856450,-651.44374231,0.00017008,2]
[350124819,1737643856460,-3903.0,0.00017009,2]
[350124820,1737643856470,-1176.0,0.00017009,2]
[350124821,1737643856479,-150.0,0.00017009,2]
[350124822,1737643856489,-1106.0,0.00017009,2]
[350124823,1737643856499,-1486.75834485,0.00017014,2]
[350124824,1737643856509,-34076.27461501,0.0001706,2]
[350124825,1737643856521,-642.30474357,0.0001706,2]
[350124826,1737643856532,-1089.3129569,0.0001706,2]
[350124827,1737643856552,-500.0,0.00016438,2]
[350124828,1737643856562,-5258.0000005,0.0001706,2]
[350124829,1737643856583,-5177.5800756,0.0001706,2]
[350124830,1737643856600,-7370.7,0.0001706,2]
[350124831,1737643856614,-23123.67477053,0.0001706,2]
[350124832,1737643857138,-216.86027105,0.00016438,2]
[350124833,1737643857148,-500.0,0.00016438,2]
[350124834,1737643857157,-500.0,0.00016438,2]
[350124835,1737643857167,-500.0,0.00016712,2]
[350124836,1737643857177,-500.0,0.00016712,2]
[350124837,1737643857186,-276.36,0.00016712,2]
[350124838,1737643857196,-500.0,0.00016986,2]
[350124839,1737643857207,-500.0,0.00016986,2]
[350124840,1737643857217,-443198.80950314,0.0001706,2]
[350124841,1737643857226,-419.588984,0.0001706,2]
[350124842,1737643857235,-419.588984,0.0001706,2]
[350124843,1737643857245,-151.0,0.0001706,2]
[350124844,1737643857254,-151.0,0.0001706,2]
[350124845,1737643857264,-152.524198,0.0001706,2]
[350124846,1737643857273,-151.0,0.0001706,2]
[350124847,1737643857283,-151.0,0.0001706,2]
[350124848,1737643857292,-151.0,0.0001706,2]
[350124849,1737643857302,-151.0,0.0001706,2]
[350124850,1737643857312,-151.0,0.0001706,2]
[350124851,1737643857324,-151.0,0.0001706,2]
[350124852,1737643857333,-151.0,0.0001706,2]
[350124853,1737643857343,-151.0,0.0001706,2]
[350124854,1737643857352,-151.0,0.0001706,2]
[350124855,1737643857365,-275.470644,0.0001706,2]
[350124856,1737643857374,-275.470644,0.0001706,2]
[350124857,1737643857384,-212.196127,0.0001706,2]
[350124858,1737643857394,-1486.75834485,0.00017096,2]
[350124859,1737643857404,-328.79282552,0.00017104,2]
[350124860,1737643857413,-651.44374231,0.00017104,2]
[350124861,1737643857423,-1486.75834485,0.00017178,2]
[350124862,1737643857433,-328.79282552,0.000172,2]
[350124863,1737643857442,-651.44374231,0.000172,2]
[350124864,1737643857452,-166.0,0.00017231,2]
[350124865,1737643857463,-1000.0,0.00017248,2]
[350124866,1737643857472,-470.9,0.00017255,2]
[350124867,1737643857482,-1006.26165683,0.00017259,5]
[350124868,1737643857492,-1006.26165682,0.00017259,5]
[350124869,1737643857502,-500.0,0.0001726,2]
[350124870,1737643857513,-504.690585,0.0001726,2]
[350124871,1737643857523,-613.906868,0.0001726,2]
[350124872,1737643857532,-500.0,0.0001726,2]
[350124873,1737643857542,-500.0,0.0001726,2]
[350124874,1737643857552,-500.0,0.0001726,2]
[350124875,1737643857561,-500.0,0.0001726,2]
[350124876,1737643857570,-500.0,0.0001726,2]
[350124877,1737643857580,-500.0,0.0001726,2]
[350124878,1737643857589,-153.063994,0.0001726,2]
[350124879,1737643857598,-500.0,0.0001726,2]
[350124880,1737643857609,-266.31290788,0.0001726,2]
[350124881,1737643857622,-233.68709212,0.0001726,2]
[350124882,1737643857633,-500.0,0.0001726,2]
[350124883,1737643857642,-500.0,0.0001726,2]
[350124884,1737643857651,-500.0,0.0001726,2]
[350124885,1737643857660,-500.0,0.0001726,2]
[350124886,1737643857670,-500.0,0.0001726,2]
[350124887,1737643857679,-500.0,0.0001726,2]
[350124888,1737643857690,-500.0,0.0001726,2]
[350124889,1737643857699,-500.0,0.0001726,2]
[350124890,1737643857708,-500.0,0.0001726,2]
[350124891,1737643857718,-500.0,0.0001726,2]
[350124892,1737643857729,-459.92295587,0.0001726,2]
[350124893,1737643857741,-500.0,0.0001726,2]
[350124894,1737643857753,-500.0,0.0001726,2]
[350124895,1737643857764,-500.0,0.0001726,2]
[350124896,1737643857773,-500.0,0.0001726,2]
[350124897,1737643857782,-500.0,0.0001726,2]
[350124898,1737643857792,-500.0,0.0001726,2]
[350124899,1737643857800,-500.0,0.0001726,2]
[350124900,1737643857810,-500.0,0.0001726,2]
[350124901,1737643857819,-874.46,0.0001726,2]
[350124902,1737643857828,-500.0,0.0001726,2]
[350124903,1737643857838,-171.21512633,0.0001726,2]
[350124904,1737643857847,-500.0,0.0001726,2]
[350124905,1737643857860,-500.0,0.0001726,2]
[350124906,1737643857870,-506.74137757,0.0001726,2]
[350124907,1737643857879,-500.0,0.0001726,2]
[350124908,1737643857888,-500.0,0.0001726,2]
[350124909,1737643857897,-500.0,0.0001726,2]
[350124910,1737643857907,-614.42,0.0001726,2]
[350124911,1737643857916,-500.0,0.0001726,2]
[350124912,1737643857925,-954.43,0.0001726,2]
[350124913,1737643857935,-500.0,0.0001726,2]
[350124914,1737643857944,-500.0,0.0001726,2]
[350124915,1737643857954,-500.0,0.0001726,2]
[350124916,1737643857963,-500.0,0.0001726,2]
[350124917,1737643857973,-500.0,0.0001726,2]
[350124918,1737643857982,-500.0,0.0001726,2]
[350124919,1737643857991,-500.0,0.0001726,2]
[350124920,1737643858001,-234.50880849,0.0001726,2]
[350124921,1737643858011,-500.0,0.0001726,2]
[350124922,1737643858021,-500.0,0.0001726,2]
[350124923,1737643858032,-500.0,0.0001726,2]
[350124924,1737643858041,-500.0,0.0001726,2]
[350124925,1737643858051,-500.0,0.0001726,2]
[350124926,1737643858060,-500.0,0.0001726,2]
[350124927,1737643858069,-529.03324076,0.0001726,2]
[350124928,1737643858080,-500.0,0.0001726,2]
[350124929,1737643858089,-500.0,0.0001726,2]
[350124930,1737643858099,-500.0,0.0001726,2]
[350124931,1737643858111,-500.0,0.0001726,2]
[350124932,1737643858120,-618.23,0.0001726,2]
[350124933,1737643858130,-500.0,0.0001726,2]
[350124934,1737643858139,-500.0,0.0001726,2]
[350124935,1737643858148,-500.0,0.0001726,2]
[350124936,1737643858157,-500.0,0.0001726,2]
[350124937,1737643858166,-500.0,0.0001726,2]
[350124938,1737643858175,-700.1,0.0001726,2]
[350124939,1737643858184,-500.0,0.0001726,2]
[350124940,1737643858193,-646.29,0.0001726,2]
[350124941,1737643858202,-500.0,0.0001726,2]
[350124942,1737643858213,-640.57,0.0001726,2]
[350124943,1737643858222,-649.82,0.0001726,2]
[350124944,1737643858232,-500.0,0.0001726,2]
[350124945,1737643858242,-500.0,0.0001726,2]
[350124946,1737643858251,-500.0,0.0001726,2]
[350124947,1737643858260,-500.0,0.0001726,2]
[350124948,1737643858270,-500.0,0.0001726,2]
[350124949,1737643858279,-500.0,0.0001726,2]
[350124950,1737643858288,-500.0,0.0001726,2]
[350124951,1737643858298,-500.0,0.0001726,2]
[350124952,1737643858307,-692.91,0.0001726,2]
[350124953,1737643858316,-500.0,0.0001726,2]
[350124954,1737643858325,-500.0,0.0001726,2]
[350124955,1737643858335,-500.0,0.0001726,2]
[350124956,1737643858344,-500.0,0.0001726,2]
[350124957,1737643858354,-500.0,0.0001726,2]
[350124958,1737643858367,-672.48,0.0001726,2]
[350124959,1737643858377,-519.79160225,0.0001726,2]
[350124960,1737643858386,-500.0,0.0001726,2]
[350124961,1737643858395,-722.67,0.0001726,2]
[350124962,1737643858405,-300.0,0.0001726,2]
[350124963,1737643858415,-500.0,0.0001726,2]
[350124964,1737643858425,-500.0,0.0001726,2]
[350124965,1737643858435,-500.0,0.0001726,2]
[350124966,1737643858445,-500.0,0.0001726,2]
[350124967,1737643858455,-648.82,0.0001726,2]
[350124968,1737643858465,-500.0,0.0001726,2]
[350124969,1737643858474,-500.0,0.0001726,2]
[350124970,1737643858483,-500.0,0.0001726,2]
[350124971,1737643858493,-500.0,0.0001726,2]
[350124972,1737643858502,-500.0,0.0001726,2]